fUSD/lending_fUSD_20250826
["ID","MTS","AMOUNT","RATE_DAILY","PERIOD"]
[381523027,1756247483259,-400.0,0.00027945,5]
[381523028,1756247483277,-400.0,0.00027945,5]
[381523029,1756247483288,-461.32,0.00027945,5]
[381523030,1756247483299,-400.0,0.00027945,5]
[381523031,1756247483312,-1213.3,0.00027945,5]
[381523032,1756247483327,-400.0,0.00027945,2]
[381523033,1756247483340,-400.0,0.00027945,5]
[381523034,1756247483354,-837.01,0.00027945,5]
[381523035,1756247483369,-950.59,0.00027945,5]
[381523036,1756247483390,-400.0,0.00027945,5]
[381523037,1756247483404,-32.87126608,0.00027945,15]
[381523038,1756247484788,-730.058462,0.00018,2]
[381523039,1756247484802,-219.965616,0.00018,2]
[381523040,1756247484815,-24.935922,0.00018,2]
[381523041,1756247484942,-126.064078,0.00018,2]
[381523042,1756247484955,-151.0,0.00018,2]
[381523043,1756247484967,-219.965616,0.00018,2]
[381523044,1756247484979,-151.0,0.00018,2]
[381523045,1756247484990,-730.058462,0.00018,2]
[381523046,1756247485003,-730.058462,0.00022533,7]
[381523047,1756247485015,-219.965616,0.00022533,7]
[381523048,1756247485027,-151.0,0.00022533,7]
[381523049,1756247485039,-151.0,0.00022533,7]
[381523050,1756247485051,-219.965616,0.00022533,7]
[381523051,1756247485064,-730.058462,0.00022533,7]
[381523052,1756247485076,-730.058462,0.000248,7]
[381523053,1756247485088,-219.965616,0.000248,7]
[381523054,1756247485100,-151.0,0.000248,7]
[381523055,1756247485112,-19.95788692,0.000248,7]
[381523056,1756247486177,-219.965616,0.00018,2]
[381523057,1756247486186,-219.965616,0.00022533,7]
[381523058,1756247486197,-131.04211308,0.000248,7]
[381523059,1756247486207,-219.965616,0.000248,7]
[381523060,1756247486216,-64.71904823,0.000248,7]
[381523061,1756247486228,-665.33941377,0.000248,7]
[381523062,1756247486238,-219.965616,0.000248,7]
[381523063,1756247486247,-730.058462,0.00026002,7]
[381523064,1756247486256,-219.965616,0.00026002,7]
[381523065,1756247486265,-294.76523,0.00026002,7]
[381523066,1756247486274,-151.0,0.00026002,7]
[381523067,1756247486284,-219.965616,0.00026002,7]
[381523068,1756247486293,-730.058462,0.00026002,7]
[381523069,1756247486302,-219.965616,0.00026002,7]
[381523070,1756247486311,-4155.0,0.00026031,2]
[381523071,1756247486320,-730.058462,0.00026102,7]
[381523072,1756247486332,-151.0,0.00026102,7]
[381523073,1756247486344,-730.058462,0.00026102,7]
[381523074,1756247486354,-219.965616,0.00026102,7]
[381523075,1756247486365,-219.965616,0.00026102,7]
[381523076,1756247486375,-730.058458,0.00026102,7]
[381523077,1756247486385,-219.96561,0.00026102,7]
[381523078,1756247486394,-541.04,0.00027397,5]
[381523079,1756247486403,-1001.14,0.00027397,5]
[381523080,1756247486412,-944.7,0.00027397,5]
[381523081,1756247486423,-400.0,0.00027397,5]
[381523082,1756247486433,-440.57593885,0.00027397,2]
[381523083,1756247486443,-554.92,0.00027397,5]
[381523084,1756247486452,-685.43,0.00027397,5]
[381523085,1756247486462,-419.54,0.00027671,5]
[381523086,1756247486472,-541.04,0.00027671,5]
[381523087,1756247486482,-1001.14,0.00027671,5]
[381523088,1756247486492,-400.0,0.00027671,5]
[381523089,1756247486501,-944.7,0.00027671,5]
[381523090,1756247486513,-554.92,0.00027671,5]
[381523091,1756247486523,-685.43,0.00027671,5]
[381523092,1756247486533,-467.12873392,0.00027945,15]
[381523093,1756247487263,-549.26,0.00027945,5]
[381523094,1756247487293,-517.57,0.00027945,5]
[381523095,1756247487310,-400.0,0.00027945,5]
[381523096,1756247487342,-1678.86,0.00027945,5]
[381523097,1756247487359,-437.08,0.00027945,5]
[381523098,1756247487387,-400.0,0.00027945,5]
[381523099,1756247487407,-532.03,0.00027945,5]
[381523100,1756247487423,-774.75,0.00027945,5]
[381523101,1756247487433,-400.0,0.00027945,5]
[381523102,1756247487443,-400.0,0.00027945,5]
[381523103,1756247487452,-400.0,0.00027945,5]
[381523104,1756247487461,-383.67262426,0.00027945,5]
[381523105,1756247487471,-540.65,0.00027945,5]
[381523106,1756247487480,-400.0,0.00027945,5]
[381523107,1756247487489,-400.0,0.00027945,5]
[381523108,1756247487498,-528.85,0.00027945,5]
[381523109,1756247487508,-1130.45,0.00027945,5]
[381523110,1756247487517,-420.2,0.00027945,5]
[381523111,1756247487526,-678.87,0.00027945,5]
[381523112,1756247487536,-400.0,0.00027945,5]
[381523113,1756247487546,-433.06,0.00027945,5]
[381523114,1756247487555,-400.0,0.00027945,5]
[381523115,1756247487565,-317.0171922,0.00027945,5]
[381523116,1756247487574,-400.0,0.00027945,5]
[381523117,1756247487584,-400.0,0.00027945,5]
[381523118,1756247487593,-607.38,0.00027945,5]
[381523119,1756247487602,-400.0,0.00027945,5]
[381523120,1756247487613,-417.73,0.00027945,5]
[381523121,1756247487632,-496.73,0.00027945,5]
[381523122,1756247487651,-851.73,0.00027945,5]
[381523123,1756247487671,-503.23,0.00027945,5]
[381523124,1756247487690,-400.0,0.00027945,5]
[381523125,1756247487710,-400.0,0.00027945,5]
[381523126,1756247487719,-400.0,0.00027945,5]
[381523127,1756247487728,-400.0,0.00027945,5]
[381523128,1756247487738,-400.0,0.00027945,5]
[381523129,1756247487748,-400.0,0.00027945,5]
[381523130,1756247487758,-400.0,0.00027945,5]
[381523131,1756247487768,-468.0,0.00027945,5]
[381523132,1756247487778,-862.02,0.00027945,5]
[381523133,1756247487787,-400.0,0.00027945,5]
[381523134,1756247487797,-787.77,0.00027945,5]
[381523135,1756247487807,-660.01,0.00027945,5]
[381523136,1756247487816,-546.33,0.00027945,5]
[381523137,1756247487826,-2710.1,0.00027945,5]
[381523138,1756247487836,-400.0,0.00027945,5]
[381523139,1756247487845,-1069.29,0.00027945,5]
[381523140,1756247487854,-554.05,0.00027945,5]
[381523141,1756247487863,-400.0,0.00027945,5]
[381523142,1756247487873,-400.0,0.00027945,5]
[381523143,1756247487882,-529.71,0.00027945,5]
[381523144,1756247487891,-400.0,0.00027945,5]
[381523145,1756247487900,-400.0,0.00027945,5]
[381523146,1756247487909,-607.55,0.00027945,5]
[381523147,1756247487919,-566.33,0.00027945,5]
[381523148,1756247487928,-675.94,0.00027945,5]
[381523149,1756247487936,-400.0,0.00027945,5]
[381523150,1756247487946,-685.76,0.00027945,5]
[381523151,1756247487955,-651.01,0.00027945,5]
[381523152,1756247487964,-539.82,0.00027945,5]
[381523153,1756247487973,-400.0,0.00027945,5]
[381523154,1756247487982,-888.52,0.00027945,5]
[381523155,1756247487991,-781.37,0.00027945,5]
[381523156,1756247488002,-940.99,0.00027945,5]
[381523157,1756247488011,-859.49,0.00027945,5]
[381523158,1756247488020,-637.74,0.00027945,5]
[381523159,1756247488029,-858.8,0.00027945,5]
[381523160,1756247488039,-400.0,0.00027945,5]
[381523161,1756247488048,-674.84,0.00027945,5]
[381523162,1756247488058,-907.26,0.00027945,5]
[381523163,1756247488067,-400.0,0.00027945,5]
[381523164,1756247488076,-491.08,0.00027945,5]
[381523165,1756247488086,-415.0346893,0.00027945,5]
[381523166,1756247488095,-400.0,0.00027945,5]
[381523167,1756247488104,-693.73,0.00027945,5]
[381523168,1756247488113,-400.0,0.00027945,5]
[381523169,1756247488122,-1148.37,0.00027945,5]
[381523170,1756247488132,-684.66,0.00027945,5]
[381523171,1756247488141,-400.0,0.00027945,5]
[381523172,1756247488150,-464.86,0.00027945,5]
[381523173,1756247488160,-400.0,0.00027945,5]
[381523174,1756247488169,-842.83,0.00027945,5]
[381523175,1756247488178,-400.0,0.00027945,5]
[381523176,1756247488187,-507.79,0.00027945,5]
[381523177,1756247488196,-1199.88,0.00027945,5]
[381523178,1756247488205,-400.0,0.00027945,5]
[381523179,1756247488214,-1458.49,0.00027945,5]
[381523180,1756247488223,-485.35,0.00027945,5]
[381523181,1756247488232,-400.0,0.00027945,5]
[381523182,1756247488241,-453.32,0.00027945,5]
[381523183,1756247488250,-400.0,0.00027945,5]
[381523184,1756247488259,-400.0,0.00027945,5]
[381523185,1756247488268,-400.0,0.00027945,5]
[381523186,1756247488277,-400.0,0.00027945,5]
[381523187,1756247488287,-400.0,0.00027945,5]
[381523188,1756247488296,-1121.43,0.00027945,5]
[381523189,1756247488306,-400.0,0.00027945,5]
[381523190,1756247488315,-400.0,0.00027945,5]
[381523191,1756247488324,-531.16,0.00027945,5]
[381523192,1756247488333,-773.99,0.00027945,5]
[381523193,1756247488347,-400.0,0.00027945,5]
[381523194,1756247488357,-400.0,0.00027945,5]
[381523195,1756247488366,-472.26,0.00027945,5]
[381523196,1756247488376,-175.19574793,0.00027945,5]
[381523197,1756247488386,-594.75,0.00027945,5]
[381523198,1756247488396,-969.85,0.00027945,5]
[381523199,1756247488405,-400.0,0.00027945,5]
[381523200,1756247488415,-475.9,0.00027945,5]
[381523201,1756247488426,-580.26,0.00027945,5]
[381523202,1756247488435,-400.0,0.00027945,5]
[381523203,1756247488444,-1461.53,0.00027945,5]
[381523204,1756247488453,-605.0,0.00027945,5]
[381523205,1756247488463,-400.0,0.00027945,5]
[381523206,1756247488474,-400.0,0.00027945,5]
[381523207,1756247488483,-400.0,0.00027945,5]
[381523208,1756247488493,-400.0,0.00027945,5]
[381523209,1756247488502,-462.79,0.00027945,5]
[381523210,1756247488511,-400.0,0.00027945,5]
[381523211,1756247488520,-400.0,0.00027945,5]
[381523212,1756247488530,-400.0,0.00027945,5]
[381523213,1756247488540,-676.59,0.00027945,5]
[381523214,1756247488550,-400.0,0.00027945,5]
[381523215,1756247488559,-743.46,0.00027945,5]
[381523216,1756247488568,-400.0,0.00027945,5]
[381523217,1756247488578,-954.12,0.00027945,5]
[381523218,1756247488587,-400.0,0.00027945,5]
[381523219,1756247488597,-403.12,0.00027945,5]
[381523220,1756247488606,-400.0,0.00027945,5]
[381523221,1756247488615,-400.0,0.00027945,5]
[381523222,1756247488624,-1035.34,0.00027945,5]
[381523223,1756247488633,-400.0,0.00027945,5]
[381523224,1756247488643,-944.84,0.00027945,5]
[381523225,1756247488652,-400.0,0.00027945,5]
[381523226,1756247488661,-924.42,0.00027945,5]
[381523227,1756247488671,-1118.79,0.00027945,5]
[381523228,1756247488680,-416.8,0.00027945,5]
[381523229,1756247488689,-672.01,0.00027945,5]
[381523230,1756247488698,-1200.36,0.00027945,5]
[381523231,1756247488707,-913.68,0.00027945,5]
[381523232,1756247488717,-613.3,0.00027945,5]
[381523233,1756247488726,-726.75,0.00027945,5]
[381523234,1756247488736,-1049.55,0.00027945,5]
[381523235,1756247488745,-2626.36,0.00027945,5]
[381523236,1756247488754,-1487.75,0.00027945,5]
[381523237,1756247488763,-400.0,0.00027945,5]
[381523238,1756247488772,-884.31,0.00027945,5]
[381523239,1756247488782,-409.9,0.00027945,5]
[381523240,1756247488791,-884.87,0.00027945,5]
[381523241,1756247488800,-400.0,0.00027945,5]
[381523242,1756247488811,-638.94,0.00027945,5]
[381523243,1756247488820,-506.7,0.00027945,5]
[381523244,1756247488830,-400.0,0.00027945,5]
[381523245,1756247488839,-400.0,0.00027945,5]
[381523246,1756247488849,-400.0,0.00027945,5]
[381523247,1756247488859,-400.0,0.00027945,5]
[381523248,1756247488869,-598.69,0.00027945,5]
[381523249,1756247488878,-559.68,0.00027945,5]
[381523250,1756247488888,-967.3,0.00027945,5]
[381523251,1756247488897,-400.0,0.00027945,5]
[381523252,1756247488907,-400.0,0.00027945,5]
[381523253,1756247488917,-400.0,0.00027945,5]
[381523254,1756247488927,-585.93,0.00027945,5]
[381523255,1756247488939,-763.79,0.00027945,5]
[381523256,1756247488948,-654.41,0.00027945,5]
[381523257,1756247488957,-1042.76,0.00027945,5]
[381523258,1756247488967,-567.92,0.00027945,5]
[381523259,1756247488976,-489.8,0.00027945,5]
[381523260,1756247488987,-488.48,0.00027945,5]
[381523261,1756247488996,-539.99,0.00027945,5]
[381523262,1756247489007,-611.59,0.00027945,5]
[381523263,1756247489018,-400.0,0.00027945,5]
[381523264,1756247489030,-778.73,0.00027945,5]
[381523265,1756247489039,-1328.83,0.00027945,5]
[381523266,1756247489049,-562.32,0.00027945,5]
[381523267,1756247489058,-655.97,0.00027945,5]
[381523268,1756247489068,-1270.1,0.00027945,5]
[381523269,1756247489078,-889.36,0.00027945,5]
[381523270,1756247489087,-856.09,0.00027945,5]
[381523271,1756247489097,-400.0,0.00027945,5]
[381523272,1756247489106,-801.08,0.00027945,5]
[381523273,1756247489116,-400.0,0.00027945,5]
[381523274,1756247489125,-414.82,0.00027945,5]
[381523275,1756247489134,-922.63,0.00027945,5]
[381523276,1756247489144,-443.64,0.00027945,5]
[381523277,1756247489153,-528.82,0.00027945,5]
[381523278,1756247489163,-1164.83,0.00027945,5]
[381523279,1756247489173,-400.0,0.00027945,5]
[381523280,1756247489191,-652.66,0.00027945,5]
[381523281,1756247489206,-809.73,0.00027945,5]
[381523282,1756247489216,-485.34,0.00027945,5]
[381523283,1756247489226,-1039.17,0.00027945,5]
[381523284,1756247489235,-505.61,0.00027945,5]
[381523285,1756247489244,-449.28,0.00027945,5]
[381523286,1756247489254,-400.0,0.00027945,5]
[381523287,1756247489264,-1204.01,0.00027945,5]
[381523288,1756247489274,-400.0,0.00027945,5]
[381523289,1756247489283,-400.0,0.00027945,5]
[381523290,1756247489293,-1006.73,0.00027945,5]
[381523291,1756247489302,-400.0,0.00027945,5]
[381523292,1756247489312,-1000.0,0.00027945,5]
[381523293,1756247489321,-596.8,0.00027945,5]
[381523294,1756247489330,-400.0,0.00027945,5]
[381523295,1756247489339,-529.54,0.00027945,5]
[381523296,1756247489351,-400.0,0.00027945,5]
[381523297,1756247489361,-495.73,0.00027945,5]
[381523298,1756247489370,-400.0,0.00027945,5]
[381523299,1756247489380,-400.0,0.00027945,5]
[381523300,1756247489391,-935.75,0.00027945,5]
[381523301,1756247489400,-400.0,0.00027945,5]
[381523302,1756247489411,-1141.66,0.00027945,5]
[381523303,1756247489420,-400.0,0.00027945,5]
[381523304,1756247489431,-400.0,0.00027945,5]
[381523305,1756247489441,-867.64,0.00027945,5]
[381523306,1756247489450,-400.0,0.00027945,5]
[381523307,1756247489460,-400.0,0.00027945,5]
[381523308,1756247489469,-3007.83,0.00027945,5]
[381523309,1756247489478,-629.27,0.00027945,5]
[381523310,1756247489487,-400.0,0.00027945,5]
[381523311,1756247489497,-954.39,0.00027945,5]
[381523312,1756247489506,-941.36,0.00027945,5]
[381523313,1756247489515,-2000.0,0.00027945,30]
[381523314,1756247489524,-400.0,0.00027945,5]
[381523315,1756247489533,-851.14,0.00027945,5]
[381523316,1756247489542,-400.0,0.00027945,5]
[381523317,1756247489551,-552.91,0.00027945,5]
[381523318,1756247489560,-400.0,0.00027945,5]
[381523319,1756247489569,-833.63,0.00027945,5]
[381523320,1756247489579,-434.48,0.00027945,5]
[381523321,1756247489588,-839.29,0.00027945,5]
[381523322,1756247489597,-621.29,0.00027945,5]
[381523323,1756247489606,-400.0,0.00027945,5]
[381523324,1756247489615,-250.0,0.00027945,5]
[381523325,1756247489624,-400.0,0.00027945,5]
[381523326,1756247489634,-1100.83,0.00027945,5]
[381523327,1756247489643,-400.0,0.00027945,5]
[381523328,1756247489652,-400.0,0.00027945,5]
[381523329,1756247489662,-1244.25,0.00027945,5]
[381523330,1756247489671,-758.03,0.00027945,5]
[381523331,1756247489681,-927.96,0.00027945,5]
[381523332,1756247489690,-887.09,0.00027945,5]
[381523333,1756247489699,-1049.87,0.00027945,5]
[381523334,1756247489708,-400.0,0.00027945,5]
[381523335,1756247489717,-400.0,0.00027945,5]
[381523336,1756247489727,-563.34,0.00027945,5]
[381523337,1756247489736,-669.63,0.00027945,5]
[381523338,1756247489746,-553.42,0.00027945,5]
[381523339,1756247489755,-400.0,0.00027945,5]
[381523340,1756247489764,-598.18,0.00027945,5]
[381523341,1756247489773,-913.43,0.00027945,5]
[381523342,1756247489783,-474.63,0.00027945,5]
[381523343,1756247489793,-400.0,0.00027945,5]
[381523344,1756247489802,-1236.0,0.00027945,5]
[381523345,1756247489811,-900.49,0.00027945,5]
[381523346,1756247489820,-483.99,0.00027945,5]
[381523347,1756247489830,-684.09,0.00027945,5]
[381523348,1756247489839,-477.1,0.00027945,5]
[381523349,1756247489848,-1229.03,0.00027945,5]
[381523350,1756247489857,-400.0,0.00027945,5]
[381523351,1756247489866,-400.0,0.00027945,5]
[381523352,1756247489875,-531.6,0.00027945,5]
[381523353,1756247489885,-515.84,0.00027945,5]
[381523354,1756247489894,-400.0,0.00027945,5]
[381523355,1756247489904,-515.19,0.00027945,5]
[381523356,1756247489914,-905.12,0.00027945,5]
[381523357,1756247489923,-577.27,0.00027945,5]
[381523358,1756247489933,-677.29,0.00027945,5]
[381523359,1756247489942,-1188.39,0.00027945,5]
[381523360,1756247489952,-539.76,0.00027945,5]
[381523361,1756247489962,-1343.31,0.00027945,5]
[381523362,1756247489971,-619.85,0.00027945,5]
[381523363,1756247489980,-830.13,0.00027945,5]
[381523364,1756247489989,-588.19,0.00027945,5]
[381523365,1756247489999,-919.06,0.00027945,5]
[381523366,1756247490009,-400.0,0.00027945,5]
[381523367,1756247490018,-1359.18,0.00027945,5]
[381523368,1756247490243,-472.78,0.00027945,5]
[381523369,1756247490260,-516.08,0.00027945,5]
[381523370,1756247490269,-1049.17,0.00027945,5]
[381523371,1756247490277,-400.0,0.00027945,5]
[381523372,1756247490287,-310.50792488,0.00027945,5]
[381523373,1756247490296,-400.0,0.00027945,5]
[381523374,1756247490306,-400.0,0.00027945,5]
[381523375,1756247490315,-586.16,0.00027945,5]
[381523376,1756247490324,-473.22,0.00027945,5]
[381523377,1756247490334,-872.73,0.00027945,5]
[381523378,1756247490344,-1021.0,0.00027945,5]
[381523379,1756247490357,-301.92821523,0.00027945,5]
[381523380,1756247490366,-524.45,0.00027945,5]
[381523381,1756247490375,-400.0,0.00027945,5]
[381523382,1756247490385,-1672.66,0.00027945,5]
[381523383,1756247490394,-941.91,0.00027945,5]
[381523384,1756247490403,-1140.4,0.00027945,5]
[381523385,1756247490413,-855.84,0.00027945,5]
[381523386,1756247490423,-481.78,0.00027945,5]
[381523387,1756247490432,-537.1,0.00027945,5]
[381523388,1756247490442,-400.0,0.00027945,5]
[381523389,1756247490451,-460.25,0.00027945,5]
[381523390,1756247490460,-528.21,0.00027945,5]
[381523391,1756247490469,-740.43,0.00027945,5]
[381523392,1756247490479,-400.0,0.00027945,5]
[381523393,1756247490488,-400.0,0.00027945,5]
[381523394,1756247490497,-884.98,0.00027945,5]
[381523395,1756247490506,-886.86,0.00027945,5]
[381523396,1756247490516,-427.69,0.00027945,5]
[381523397,1756247490525,-862.22,0.00027945,5]
[381523398,1756247490534,-400.0,0.00027945,5]
[381523399,1756247490544,-521.35,0.00027945,5]
[381523400,1756247490553,-1226.83,0.00027945,5]
[381523401,1756247490562,-738.68,0.00027945,5]
[381523402,1756247490571,-967.33,0.00027945,5]
[381523403,1756247490580,-400.0,0.00027945,5]
[381523404,1756247490590,-591.03,0.00027945,5]
[381523405,1756247490599,-400.0,0.00027945,5]
[381523406,1756247490608,-633.41,0.00027945,5]
[381523407,1756247490619,-400.0,0.00027945,5]
[381523408,1756247490629,-400.0,0.00027945,5]
[381523409,1756247490639,-400.0,0.00027945,5]
[381523410,1756247490649,-400.0,0.00027945,5]
[381523411,1756247490659,-721.77,0.00027945,5]
[381523412,1756247490668,-400.0,0.00027945,5]
[381523413,1756247490677,-925.92,0.00027945,5]
[381523414,1756247490686,-400.0,0.00027945,5]
[381523415,1756247490696,-830.19,0.00027945,5]
[381523416,1756247490706,-444.0,0.00027945,5]
[381523417,1756247490715,-547.29,0.00027945,5]
[381523418,1756247490727,-400.0,0.00027945,5]
[381523419,1756247490736,-400.0,0.00027945,5]
[381523420,1756247490746,-1194.32,0.00027945,5]
[381523421,1756247490758,-400.0,0.00027945,5]
[381523422,1756247490770,-877.71,0.00027945,5]
[381523423,1756247490781,-863.59,0.00027945,5]
[381523424,1756247490791,-400.04,0.00027945,5]
[381523425,1756247490803,-850.14,0.00027945,5]
[381523426,1756247490814,-627.72,0.00027945,5]
[381523427,1756247490828,-1040.0,0.00027945,5]
[381523428,1756247490838,-400.0,0.00027945,5]
[381523429,1756247490849,-608.42,0.00027945,5]
[381523430,1756247490859,-1107.0,0.00027945,5]
[381523431,1756247490868,-717.14,0.00027945,5]
[381523432,1756247490878,-1968.72,0.00027945,5]
[381523433,1756247490887,-1053.02,0.00027945,5]
[381523434,1756247490897,-1461.8,0.00027945,5]
[381523435,1756247490906,-400.0,0.00027945,5]
[381523436,1756247490915,-401.36,0.00027945,5]
[381523437,1756247490925,-751.58,0.00027945,5]
[381523438,1756247490935,-400.0,0.00027945,5]
[381523439,1756247490945,-400.0,0.00027945,5]
[381523440,1756247490954,-400.0,0.00027945,5]
[381523441,1756247490963,-400.0,0.00027945,5]
[381523442,1756247490972,-569.4,0.00027945,5]
[381523443,1756247490983,-818.15,0.00027945,5]
[381523444,1756247490993,-400.0,0.00027945,5]
[381523445,1756247491002,-433.95,0.00027945,5]
[381523446,1756247491011,-1084.12,0.00027945,5]
[381523447,1756247491021,-458.86,0.00027945,5]
[381523448,1756247491030,-400.0,0.00027945,5]
[381523449,1756247491041,-400.0,0.00027945,5]
[381523450,1756247491051,-754.99,0.00027945,5]
[381523451,1756247491063,-1378.44,0.00027945,5]
[381523452,1756247491072,-400.0,0.00027945,5]
[381523453,1756247491081,-1198.47,0.00027945,5]
[381523454,1756247491090,-422.07,0.00027945,5]
[381523455,1756247491099,-591.12,0.00027945,5]
[381523456,1756247491109,-400.0,0.00027945,5]
[381523457,1756247491119,-919.31,0.00027945,5]
[381523458,1756247491128,-625.11,0.00027945,5]
[381523459,1756247491138,-400.0,0.00027945,5]
[381523460,1756247491148,-400.0,0.00027945,5]
[381523461,1756247491157,-735.52,0.00027945,5]
[381523462,1756247491167,-400.0,0.00027945,5]
[381523463,1756247491176,-1230.61,0.00027945,5]
[381523464,1756247491186,-241.50451758,0.00027945,5]
[381523465,1756247491195,-679.76,0.00027945,5]
[381523466,1756247491205,-423.8,0.00027945,5]
[381523467,1756247491215,-400.0,0.00027945,5]
[381523468,1756247491224,-668.66,0.00027945,5]
[381523469,1756247491234,-839.37,0.00027945,5]
[381523470,1756247491243,-1179.14,0.00027945,5]
[381523471,1756247491252,-400.0,0.00027945,5]
[381523472,1756247491262,-550.03,0.00027945,5]
[381523473,1756247491271,-606.15,0.00027945,5]
[381523474,1756247491280,-980.27,0.00027945,5]
[381523475,1756247491289,-400.0,0.00027945,5]
[381523476,1756247491298,-1052.9,0.00027945,5]
[381523477,1756247491307,-400.0,0.00027945,5]
[381523478,1756247491317,-541.64,0.00027945,5]
[381523479,1756247491326,-571.34,0.00027945,5]
[381523480,1756247491335,-400.0,0.00027945,5]
[381523481,1756247491345,-939.46,0.00027945,5]
[381523482,1756247491356,-719.22,0.00027945,5]
[381523483,1756247491366,-865.4,0.00027945,5]
[381523484,1756247491375,-400.0,0.00027945,5]
[381523485,1756247491384,-400.0,0.00027945,5]
[381523486,1756247491394,-400.0,0.00027945,5]
[381523487,1756247491404,-818.0,0.00027945,5]
[381523488,1756247491414,-656.76,0.00027945,5]
[381523489,1756247491425,-400.0,0.00027945,5]
[381523490,1756247491435,-490.0,0.00027945,5]
[381523491,1756247491444,-591.37,0.00027945,5]
[381523492,1756247491453,-840.0,0.00027945,5]
[381523493,1756247491463,-400.0,0.00027945,5]
[381523494,1756247491472,-400.0,0.00027945,5]
[381523495,1756247491482,-400.0,0.00027945,5]
[381523496,1756247491491,-400.0,0.00027945,5]
[381523497,1756247491500,-400.0,0.00027945,5]
[381523498,1756247491510,-790.3,0.00027945,5]
[381523499,1756247491519,-1150.83,0.00027945,5]
[381523500,1756247491528,-888.08,0.00027945,5]
[381523501,1756247491538,-1000.0,0.00027945,5]
[381523502,1756247491547,-400.0,0.00027945,5]
[381523503,1756247491556,-400.0,0.00027945,5]
[381523504,1756247491566,-469.3,0.00027945,5]
[381523505,1756247491575,-400.0,0.00027945,5]
[381523506,1756247491584,-847.08,0.00027945,5]
[381523507,1756247491594,-492.78,0.00027945,5]
[381523508,1756247491602,-537.4,0.00027945,5]
[381523509,1756247491612,-975.87,0.00027945,5]
[381523510,1756247491622,-400.0,0.00027945,5]
[381523511,1756247491631,-1218.12,0.00027945,5]
[381523512,1756247491640,-419.92,0.00027945,5]
[381523513,1756247491649,-526.34,0.00027945,5]
[381523514,1756247491659,-672.13,0.00027945,5]
[381523515,1756247491668,-1372.18,0.00027945,5]
[381523516,1756247491677,-1017.86,0.00027945,5]
[381523517,1756247491687,-716.98,0.00027945,5]
[381523518,1756247491696,-400.0,0.00027945,5]
[381523519,1756247491706,-400.0,0.00027945,5]
[381523520,1756247491715,-400.0,0.00027945,5]
[381523521,1756247491725,-1024.72,0.00027945,5]
[381523522,1756247491735,-497.56,0.00027945,5]
[381523523,1756247491744,-543.39,0.00027945,5]
[381523524,1756247491754,-578.62,0.00027945,5]
[381523525,1756247491763,-400.0,0.00027945,5]
[381523526,1756247491774,-1054.76,0.00027945,5]